fUSD/lending_fUSD_20250417
["ID","MTS","AMOUNT","RATE_DAILY","PERIOD"]
[358318336,1744932631658,-303.76,0.0001999,2]
[358318337,1744932631668,-303.76,0.0001999,2]
[358318338,1744932631677,-303.76,0.0001999,2]
[358318339,1744932631687,-303.76,0.0001999,2]
[358318340,1744932631696,-303.76,0.0001999,2]
[358318341,1744932631705,-300.0,0.00019999,2]
[358318342,1744932631715,-300.0,0.00019999,2]
[358318343,1744932631724,-268.0,0.00019999,2]
[358318344,1744932631733,-18416.00802992,0.0002,2]
[358318345,1744932631745,-494.7767235,0.0002,2]
[358318346,1744932631760,-18053.91370969,0.0002,2]
[358318405,1744932637786,-1106339.17522083,0.0002,2]
[358318406,1744932637797,-340569.66230341,0.0002,2]
[358318407,1744932638006,-3834.00425609,0.0002,2]
[358318412,1744932639903,-764.947,0.0002,2]
[358318413,1744932639927,-975.3911557,0.0002,2]
[358318414,1744932640095,-967.07159406,0.0002,2]
[358318415,1744932640113,-2421.15000765,0.0002,2]
[358318416,1744932640279,-694.40749996,0.0002,2]
[358318417,1744932640369,-1283.80138565,0.0002,2]
[358318431,1744932643985,-445.93234517,0.0002,2]
[358318432,1744932644077,-1165.30404382,0.0002,2]
[358318433,1744932644170,-6303.29432847,0.0002,2]
[358318434,1744932644182,-9328.34068925,0.0002,2]
[358318441,1744932644971,-1915.03356049,0.0002,2]
[358318442,1744932644982,-608.44251436,0.0002,2]
[358318443,1744932644994,-735.915,0.0002,2]
[358318444,1744932645006,-1121.145,0.0002,2]
[358318445,1744932645017,-7732.94178223,0.0002,2]
[358318446,1744932645028,-31361.92882946,0.0002,2]
[358318448,1744932645699,-397.39523315,0.0002,2]
[358318449,1744932645789,-323.57617519,0.0002,2]
[358318450,1744932645803,-844.21700813,0.0002,2]
[358318451,1744932645872,-475.1315904,0.0002,2]
[358318452,1744932645883,-405.94008,0.0002,2]
[358318453,1744932645894,-2523.70000002,0.0002,2]
[358318454,1744932645905,-4744.79967454,0.0002,2]
[358318455,1744932645956,-671.6480804,0.0002,2]
[358318456,1744932646110,-3118.499995,0.0002,2]
[358318461,1744932848124,-934.1242,0.000199,2]
[358318462,1744932848150,-320.39577236,0.00019973,2]
[358318463,1744932848175,-500.0,0.00019973,2]
[358318464,1744932848201,-1000.0,0.00019999,2]
[358318465,1744932848228,-500.0,0.00019999,2]
[358318466,1744932848253,-216.41288651,0.00019999,2]
[358318467,1744932848280,-300.0,0.00019999,2]
[358318468,1744932848305,-153.0,0.00019999,2]
[358318469,1744932848330,-226.90474604,0.00019999,2]
[358318470,1744932848363,-495849.16239509,0.0002,2]
[358318471,1744932857689,-500000.0,0.0002,2]
[358318472,1744932862747,-500000.0,0.0002,2]
[358318474,1744932878500,-1170464.82249272,0.0002,2]
[358318475,1744932878527,-36121.74088484,0.00020599,2]
[358318476,1744932878555,-250.0,0.0002189,2]
[358318477,1744932878581,-250.0,0.00022,2]
[358318478,1744932878758,-162.79730242,0.00022475,2]
[358318479,1744932878783,-410.33492546,0.00022475,2]
[358318480,1744932878807,-500.0,0.00022829,2]
[358318481,1744932878831,-208.01,0.000239,2]
[358318482,1744932878861,-44281.3137788,0.000248,2]
[358318483,1744932878886,-869.64270766,0.00025452,2]
[358318484,1744932878912,-36121.74088481,0.00027293,2]
[358318485,1744932878936,-1000.0,0.00028308,5]
[358318486,1744932878961,-35694.08396015,0.0003133,2]
[358318487,1744932878987,-36121.74088481,0.00033987,2]
[358318488,1744932879012,-1938.43,0.0003508,2]
[358318489,1744932879037,-4474.33861875,0.00035421,2]
[358318490,1744932879062,-250.0,0.00035555,120]
[358318491,1744932879086,-1927.8,0.0003564,2]
[358318492,1744932879110,-1508.13,0.00035735,2]
[358318493,1744932879134,-150.0,0.00036193,2]
[358318494,1744932879158,-8415.28,0.00036365,2]
[358318495,1744932879182,-500.0,0.00036365,2]
[358318496,1744932879206,-8189.21,0.00037873,2]
[358318497,1744932879231,-150.99,0.00037873,2]
[358318498,1744932879255,-2837.49,0.00037873,2]
[358318499,1744932879280,-4474.33861875,0.00039101,2]
[358318500,1744932879305,-165.94,0.00039361,2]
[358318501,1744932879330,-250.0,0.00039521,2]
[358318502,1744932879355,-16671.6,0.00039521,2]
[358318503,1744932879382,-500.0,0.00039726,15]
[358318504,1744932879410,-336.89765641,0.00039726,15]
[358318505,1744932879437,-500.0,0.00039726,15]
[358318506,1744932879471,-500.0,0.00039726,15]
[358318507,1744932879497,-500.0,0.00039726,15]
[358318508,1744932879524,-500.0,0.00039726,15]
[358318509,1744932879554,-500.0,0.00039726,15]
[358318510,1744932879582,-500.0,0.00039726,15]
[358318511,1744932879609,-500.0,0.00039726,15]
[358318512,1744932879638,-500.0,0.00039726,15]
[358318513,1744932879665,-500.0,0.00039726,15]
[358318514,1744932879693,-540.0,0.00039726,15]
[358318515,1744932879718,-604.4797596,0.0004,30]
[358318516,1744932879743,-62640.84822344,0.0004,30]
[358318517,1744932879768,-36121.74088481,0.00040681,15]
[358318518,1744932879793,-4474.33861875,0.00042782,15]
[358318519,1744932879818,-165.94,0.00045857,2]
[358318520,1744932879843,-4474.33861875,0.00046462,15]
[358318521,1744932879867,-36121.74088481,0.00047375,15]
[358318522,1744932879893,-1007.02271262,0.0005,120]
[358318523,1744932879918,-1508.13,0.00050029,2]
[358318524,1744932879943,-4474.33861875,0.00050143,15]
[358318525,1744932879968,-2136.72,0.00050228,2]
[358318526,1744932879992,-165.12109332,0.0005045,2]
[358318527,1744932880017,-2555.92,0.000538,60]
[358318528,1744932880042,-1195.24385565,0.00053811,2]
[358318529,1744932880070,-183.75796036,0.00053823,31]
[358318530,1744932880094,-4474.33861875,0.00053823,15]
[358318531,1744932880117,-249.90401695,0.00053823,2]
[358318532,1744932880142,-151.0,0.00054,100]
[358318533,1744932880168,-36121.74088481,0.00054069,15]
[358318534,1744932880191,-150.0,0.00054495,2]
[358318535,1744932880215,-150.0,0.00054495,2]
[358318536,1744932880248,-250.0,0.00054495,2]
[358318537,1744932880277,-150.0,0.00054495,2]
[358318538,1744932880305,-150.0,0.00054495,2]
[358318539,1744932880329,-150.0,0.00054495,2]
[358318540,1744932880355,-500.0,0.00054495,2]
[358318541,1744932880382,-500.0,0.00054495,2]
[358318542,1744932880406,-500.0,0.00054495,2]
[358318543,1744932880431,-500.0,0.00054495,2]
[358318544,1744932880456,-500.0,0.00054495,2]
[358318545,1744932880484,-500.0,0.00054495,2]
[358318546,1744932880511,-500.0,0.00054495,2]
[358318547,1744932880535,-500.0,0.00054495,2]
[358318548,1744932880562,-300.0,0.00054495,2]
[358318549,1744932880588,-150.0,0.00054495,2]
[358318550,1744932880613,-150.0,0.00054495,2]
[358318551,1744932880639,-150.0,0.00054495,2]
[358318552,1744932880664,-208.17431081,0.00054495,2]
[358318553,1744932880689,-500.0,0.00054495,2]
[358318554,1744932880715,-500.0,0.00054495,2]
[358318555,1744932880740,-500.0,0.00054495,2]
[358318556,1744932880766,-500.0,0.00054495,2]
[358318557,1744932880791,-500.0,0.00054495,2]
[358318558,1744932880818,-500.0,0.00054495,2]
[358318559,1744932880843,-500.0,0.00054495,2]
[358318560,1744932880867,-500.0,0.00054495,2]
[358318561,1744932907126,-14281.09535108,0.00053911,30]
[358318562,1744932907160,-728899.1673161,0.00053911,30]
[358318563,1744932907193,-54915.83576853,0.00053911,30]
[358318564,1744932907224,-52543.62833045,0.00053911,30]
[358318565,1744932907254,-2000.0,0.00053911,2]
[358318566,1744932907286,-110787.50839942,0.00053911,30]
[358318567,1744932907319,-7500.000002,0.00053911,30]
[358318568,1744932907349,-859.87897855,0.00053911,2]
[358318569,1744932907381,-606.74657375,0.00053911,30]
[358318570,1744932935901,-200.0,0.00053922,90]
[358318571,1744932935931,-153.53,0.000552,54]
[358318572,1744932935957,-500.0,0.0005775,15]
[358318573,1744932935983,-366.35636885,0.0005776,15]
[358318574,1744932936007,-500.0,0.0005776,14]
[358318575,1744932936032,-500.0,0.0005776,15]
[358318576,1744932936059,-500.0,0.0005776,15]
[358318577,1744932936085,-168.67923687,0.0005776,15]
[358318578,1744932936108,-506.10470492,0.0005776,14]
[358318579,1744932936132,-159.0,0.00060374,25]
[358318580,1744932936158,-36121.74088481,0.00060763,15]
[358318581,1744932936182,-161.60423193,0.00061748,41]
[358318582,1744932936206,-501.46586729,0.00063239,14]
[358318583,1744932936230,-502.65807078,0.00063239,15]
[358318584,1744932936258,-502.16109153,0.00063239,15]
[358318585,1744932936283,-161.6042319,0.00065465,46]
[358318586,1744932936307,-200.0,0.00066155,30]
[358318587,1744932936333,-36121.74088481,0.00067457,15]
[358318588,1744932936357,-1280.0,0.00068991,120]
[358318589,1744932936381,-907.0,0.00068991,120]
[358318590,1744932936404,-545.0,0.00068991,120]
[358318591,1744932936428,-1438.0,0.00068991,120]
[358318592,1744932936452,-4148.0,0.00068991,120]
[358318593,1744932936476,-578.686,0.00068991,120]
[358318594,1744932936500,-161.6042319,0.00069182,50]
[358318595,1744932936524,-865.0,0.0007244,120]
[358318596,1744932936556,-1124.0,0.0007244,120]
[358318597,1744932936581,-150.041808,0.00072498,120]
[358318598,1744932936608,-775.39727677,0.0007286,120]
[358318599,1744932936633,-161.6042319,0.00072899,55]
[358318600,1744932936658,-181.71461213,0.00072966,30]
[358318601,1744932936683,-150.041808,0.00073498,120]
[358318602,1744932936711,-36121.74088481,0.00074151,15]
[358318603,1744932936737,-1288.0,0.00074422,120]
[358318604,1744932936763,-1328.0,0.00074422,120]
[358318605,1744932936788,-150.041808,0.00074498,120]
[358318606,1744932936814,-432.6497459,0.00075237,120]
[358318607,1744932936855,-197.964794,0.00075432,120]
[358318608,1744932936895,-151.0,0.00075432,120]
[358318609,1744932936935,-219.678094,0.00075432,120]
[358318610,1744932936975,-264.216842,0.00075432,120]
[358318611,1744932937015,-1030.960864,0.00075432,120]
[358318612,1744932937056,-1030.960864,0.00075432,120]
[358318613,1744932937096,-1118.0,0.0007544,120]
[358318614,1744932937137,-150.041808,0.00075498,120]
[358318615,1744932937175,-152.3798808,0.00076411,120]
[358318616,1744932937215,-150.041808,0.00076498,120]
[358318617,1744932937253,-161.6042319,0.00076616,60]
[358318618,1744932937291,-152.3798808,0.00076959,120]
[358318619,1744932937333,-499.85649999,0.00077,120]
[358318620,1744932937370,-15558.43575554,0.00077,120]
[358318621,1744932937407,-1286.0,0.00077422,120]
[358318622,1744932937446,-150.041808,0.00077498,120]
[358318623,1744932937484,-152.3798808,0.00077534,120]
[358318624,1744932937523,-152.3798808,0.00078082,120]
[358318625,1744932937575,-2555.92,0.000784,60]
[358318626,1744932937614,-150.041808,0.00078498,120]
[358318627,1744932937654,-152.3798808,0.00078658,120]
[358318628,1744932937695,-152.3798808,0.00079205,120]
[358318629,1744932937737,-240.50449639,0.00079352,28]
[358318630,1744932937782,-500.0,0.00079452,120]
[358318631,1744932937827,-321.03,0.00079452,120]
[358318632,1744932937870,-605.83,0.00079452,120]
[358318633,1744932937913,-500.0,0.00079452,120]
[358318634,1744932937956,-566.80960203,0.00079452,120]
[358318635,1744932937996,-500.0,0.00079452,120]
[358318636,1744932938035,-279.5,0.00079452,120]
[358318637,1744932938073,-2249.792567,0.00079452,120]
[358318638,1744932938111,-2249.792567,0.00079452,120]
[358318639,1744932938291,-500.0,0.00079452,120]
[358318640,1744932938332,-500.0,0.00079452,120]
[358318641,1744932938370,-500.0,0.00079452,120]
[358318642,1744932938413,-500.0,0.00079452,120]
[358318643,1744932938452,-500.0,0.00079452,120]
[358318644,1744932938491,-500.0,0.00079452,120]
[358318645,1744932938530,-500.0,0.00079452,120]
[358318646,1744932938570,-389.47,0.00079452,120]
[358318647,1744932938609,-500.0,0.00079452,120]
[358318648,1744932938650,-500.0,0.00079452,120]
[358318649,1744932938688,-500.0,0.00079452,120]
[358318650,1744932938728,-500.0,0.00079452,120]
[358318651,1744932938769,-500.0,0.00079452,120]
[358318652,1744932938806,-286.51135386,0.00079452,120]
[358318653,1744932938844,-500.0,0.00079452,120]
[358318654,1744932938883,-500.0,0.00079452,120]
[358318655,1744932938925,-512.69613465,0.00079452,120]
[358318656,1744932938965,-500.0,0.00079452,120]
[358318657,1744932939006,-500.0,0.00079452,120]
[358318658,1744932939045,-255.45,0.00079452,120]
[358318659,1744932939085,-500.0,0.00079452,120]
[358318660,1744932939125,-500.0,0.00079452,120]
[358318661,1744932939165,-500.0,0.00079452,120]
[358318662,1744932939203,-500.0,0.00079452,120]
[358318663,1744932939242,-240.839034,0.00079452,120]
[358318664,1744932939280,-500.0,0.00079452,120]
[358318665,1744932939320,-500.0,0.00079452,120]
[358318666,1744932939361,-500.0,0.00079452,120]
[358318667,1744932939401,-500.0,0.00079452,120]
[358318668,1744932939443,-500.0,0.00079452,120]
[358318669,1744932939484,-500.0,0.00079452,120]
[358318670,1744932939524,-511.22741076,0.00079452,120]
[358318671,1744932939571,-500.0,0.00079452,120]
[358318672,1744932939612,-500.0,0.00079452,120]
[358318673,1744932939861,-204.64,0.00079452,120]
[358318674,1744932939901,-514.96285997,0.00079452,120]
[358318675,1744932939940,-500.0,0.00079452,120]
[358318676,1744932939977,-500.0,0.00079452,120]
[358318677,1744932940015,-500.0,0.00079452,120]
[358318678,1744932940052,-244.00729794,0.00079452,120]
[358318679,1744932940091,-270.52,0.00079452,120]
[358318680,1744932940128,-500.0,0.00079452,120]
[358318681,1744932940165,-500.0,0.00079452,120]
[358318682,1744932940201,-500.0,0.00079452,120]
[358318683,1744932940242,-1140.67314,0.00079452,120]
[358318684,1744932940282,-557.32555147,0.00079452,120]
[358318685,1744932940323,-1140.67314,0.00079452,120]
[358318686,1744932940360,-500.0,0.00079452,120]
[358318687,1744932940399,-500.0,0.00079452,30]
[358318688,1744932940435,-588.9232894,0.00079452,30]
[358318689,1744932940474,-500.0,0.00079452,120]
[358318690,1744932940511,-500.0,0.00079452,120]
[358318691,1744932940548,-255.1,0.00079452,120]
[358318692,1744932940584,-500.0,0.00079452,120]
[358318693,1744932940623,-522.1170533,0.00079452,120]
[358318694,1744932940668,-508.58376208,0.00079452,120]
[358318695,1744932940711,-504.52658213,0.00079452,120]
[358318696,1744932940755,-500.0,0.00079452,120]
[358318697,1744932940791,-500.0,0.00079452,120]
[358318698,1744932940828,-514.88606813,0.00079452,120]
[358318699,1744932940867,-500.0,0.00079452,120]
[358318700,1744932940902,-500.0,0.00079452,120]
[358318701,1744932940938,-271.84,0.00079452,120]
[358318702,1744932940976,-518.60092767,0.00079452,120]
[358318703,1744932941014,-500.0,0.00079452,120]
[358318704,1744932941053,-500.0,0.00079452,120]
[358318705,1744932941090,-500.0,0.00079452,120]
[358318706,1744932941129,-500.0,0.00079452,120]
[358318707,1744932941166,-500.0,0.00079452,120]
[358318708,1744932941204,-376.14,0.00079452,120]
[358318709,1744932941241,-500.0,0.00079452,120]
[358318710,1744932941278,-500.0,0.00079452,120]
[358318711,1744932941314,-500.0,0.00079452,120]
[358318712,1744932941352,-500.0,0.00079452,120]
[358318713,1744932941388,-474.81364258,0.00079452,120]
[358318714,1744932941425,-500.0,0.00079452,120]
[358318715,1744932941466,-500.0,0.00079452,120]
[358318716,1744932941506,-563.04050277,0.00079452,120]
[358318717,1744932941549,-500.0,0.00079452,120]
[358318718,1744932941589,-872.5,0.00079452,120]
[358318719,1744932941630,-872.5,0.00079452,120]
[358318720,1744932941667,-872.5,0.00079452,120]
[358318721,1744932941706,-500.0,0.00079452,120]
[358318722,1744932941744,-872.5,0.00079452,120]
[358318723,1744932941782,-872.5,0.00079452,120]
[358318724,1744932941819,-500.0,0.00079452,120]
[358318725,1744932941857,-872.5,0.00079452,120]
[358318726,1744932941894,-559.87,0.00079452,120]
[358318727,1744932941934,-872.5,0.00079452,120]
[358318728,1744932941974,-872.5,0.00079452,120]
[358318729,1744932942012,-872.5,0.00079452,120]
[358318730,1744932942055,-872.5,0.00079452,120]
[358318731,1744932942093,-872.5,0.00079452,120]
[358318732,1744932942131,-872.5,0.00079452,120]
[358318733,1744932942171,-872.5,0.00079452,120]
[358318734,1744932942209,-275.62768645,0.00079452,120]
[358318735,1744932942359,-872.5,0.00079452,120]
[358318736,1744932942399,-872.5,0.00079452,120]
[358318737,1744932942438,-500.0,0.00079452,120]
[358318738,1744932942480,-500.0,0.00079452,120]
[358318739,1744932942520,-872.5,0.00079452,120]
[358318740,1744932942562,-500.0,0.00079452,120]
[358318741,1744932942603,-872.5,0.00079452,120]
[358318742,1744932942644,-500.0,0.00079452,120]
[358318743,1744932942681,-872.5,0.00079452,120]
[358318744,1744932942723,-500.0,0.00079452,120]
[358318745,1744932942761,-872.5,0.00079452,120]
[358318746,1744932942801,-500.0,0.00079452,120]
[358318747,1744932942839,-872.5,0.00079452,120]
[358318748,1744932942877,-872.5,0.00079452,120]
[358318749,1744932942913,-517.91,0.00079452,120]
[358318750,1744932942954,-500.0,0.00079452,120]
[358318751,1744932942991,-872.5,0.00079452,120]
[358318752,1744932943030,-500.0,0.00079452,120]
[358318753,1744932943066,-872.5,0.00079452,120]
[358318754,1744932943102,-872.54,0.00079452,120]
[358318755,1744932943140,-500.0,0.00079452,120]
[358318756,1744932943177,-500.0,0.00079452,120]
[358318757,1744932943213,-500.0,0.00079452,120]
[358318758,1744932943250,-233.11141587,0.00079452,120]
[358318759,1744932943285,-500.0,0.00079452,120]
[358318760,1744932943321,-571.6,0.00079452,120]
[358318761,1744932943357,-500.0,0.00079452,120]
[358318762,1744932943395,-500.0,0.00079452,120]
[358318763,1744932943433,-327.04671834,0.00079452,120]
[358318764,1744932943474,-500.0,0.00079452,120]
[358318765,1744932943514,-500.0,0.00079452,120]
[358318766,1744932943557,-382.55,0.00079452,120]
[358318767,1744932943596,-1050.16,0.00079452,120]
[358318768,1744932943641,-500.0,0.00079452,120]
[358318769,1744932943687,-500.0,0.00079452,120]
[358318770,1744932943731,-635.15,0.00079452,120]
[358318771,1744932943773,-500.0,0.00079452,120]
[358318772,1744932943815,-1050.16,0.00079452,120]
[358318773,1744932943852,-500.0,0.00079452,120]
[358318774,1744932943893,-1050.16,0.00079452,120]
[358318775,1744932943932,-565.11924953,0.00079452,120]
[358318776,1744932943974,-1050.16,0.00079452,120]
[358318777,1744932944014,-500.0,0.00079452,120]
[358318778,1744932944055,-1050.16,0.00079452,120]
[358318779,1744932944093,-553.33,0.00079452,120]
[358318780,1744932944131,-1050.16,0.00079452,120]
[358318781,1744932944168,-1050.16,0.00079452,120]
[358318782,1744932944206,-1050.16,0.00079452,120]
[358318783,1744932944244,-1050.16,0.00079452,120]
[358318784,1744932944284,-1050.16,0.00079452,120]
[358318785,1744932944324,-530.39729773,0.00079452,120]
[358318786,1744932944366,-1050.16,0.00079452,120]
[358318787,1744932944405,-500.0,0.00079452,120]
[358318788,1744932944447,-1050.16,0.00079452,120]
[358318789,1744932944487,-500.0,0.00079452,120]
[358318790,1744932944528,-1050.16,0.00079452,120]
[358318791,1744932944573,-1050.16,0.00079452,120]
[358318792,1744932944615,-500.0,0.00079452,120]
[358318793,1744932944654,-1050.16,0.00079452,120]
[358318794,1744932944695,-534.35,0.00079452,120]
[358318795,1744932944735,-1050.16,0.00079452,120]
[358318796,1744932944774,-1050.16,0.00079452,120]
[358318797,1744932944812,-1050.16,0.00079452,120]
[358318798,1744932944852,-1050.16,0.00079452,120]
[358318799,1744932944890,-1050.16,0.00079452,120]
[358318800,1744932944929,-500.0,0.00079452,120]
[358318801,1744932944967,-1050.16,0.00079452,120]
[358318802,1744932945007,-500.0,0.00079452,120]
[358318803,1744932945049,-1050.16,0.00079452,120]
[358318804,1744932945087,-1050.16,0.00079452,120]
[358318805,1744932945124,-549.80961626,0.00079452,120]
[358318806,1744932945161,-1050.22,0.00079452,120]
[358318807,1744932945197,-500.0,0.00079452,120]
[358318808,1744932945235,-500.0,0.00079452,120]
[358318809,1744932945273,-489.6,0.00079452,120]
[358318810,1744932945311,-500.0,0.00079452,120]
[358318811,1744932945348,-172.71816453,0.00079452,120]
[358318812,1744932945385,-500.0,0.00079452,120]
[358318813,1744932945426,-500.0,0.00079452,120]
[358318814,1744932945464,-500.0,0.00079452,120]
[358318815,1744932945502,-619.37,0.00079452,120]
[358318816,1744932945541,-500.0,0.00079452,120]
[358318817,1744932945580,-500.0,0.00079452,120]
[358318818,1744932945618,-213.38,0.00079452,120]
[358318819,1744932945658,-1495.99,0.00079452,120]
[358318820,1744932945697,-500.0,0.00079452,120]
[358318821,1744932945739,-500.0,0.00079452,120]
[358318822,1744932945779,-1495.99,0.00079452,120]
[358318823,1744932945818,-591.28,0.00079452,120]
[358318824,1744932945856,-500.0,0.00079452,120]
[358318825,1744932945893,-500.0,0.00079452,120]
[358318826,1744932945933,-1495.99,0.00079452,120]
[358318827,1744932945969,-322.54,0.00079452,120]
[358318828,1744932946009,-1495.99,0.00079452,120]
[358318829,1744932946048,-1495.99,0.00079452,120]
[358318830,1744932946233,-1495.99,0.00079452,120]
[358318831,1744932946272,-500.0,0.00079452,120]
[358318832,1744932946314,-1495.99,0.00079452,120]
[358318833,1744932946352,-500.0,0.00079452,120]
[358318834,1744932946393,-1495.99,0.00079452,120]
[358318835,1744932946432,-500.0,0.00079452,120]
[358318836,1744932946470,-1495.99,0.00079452,120]
[358318837,1744932946511,-1495.99,0.00079452,120]
[358318838,1744932946552,-1495.99,0.00079452,120]
[358318839,1744932946594,-1495.99,0.00079452,120]
[358318840,1744932946633,-500.0,0.00079452,120]
[358318841,1744932946675,-1495.99,0.00079452,120]
[358318842,1744932946713,-409.8,0.00079452,120]
[358318843,1744932946754,-1495.99,0.00079452,120]
[358318844,1744932946794,-1495.99,0.00079452,120]
[358318845,1744932946834,-500.0,0.00079452,120]
[358318846,1744932946875,-1495.99,0.00079452,120]
[358318847,1744932946917,-1495.99,0.00079452,120]
[358318848,1744932946965,-500.0,0.00079452,120]
[358318849,1744932947007,-1495.99,0.00079452,120]
[358318850,1744932947049,-1495.99,0.00079452,120]
[358318851,1744932947090,-1495.99,0.00079452,120]
[358318852,1744932947134,-1495.99,0.00079452,120]
[358318853,1744932947176,-1495.99,0.00079452,120]
[358318854,1744932947217,-1495.99,0.00079452,120]
[358318855,1744932947258,-529.50551893,0.00079452,120]
[358318856,1744932947303,-1496.06400343,0.00079452,120]
[358318857,1744932947350,-619.63864559,0.00079452,120]
[358318858,1744932947399,-500.0,0.00079452,120]
[358318859,1744932947448,-500.0,0.00079452,120]
[358318860,1744932947497,-500.0,0.00079452,120]
[358318861,1744932947542,-168.47,0.00079452,120]
[358318862,1744932947584,-573.22,0.00079452,120]
[358318863,1744932947626,-500.0,0.00079452,120]
[358318864,1744932947669,-500.0,0.00079452,120]
[358318865,1744932947712,-500.0,0.00079452,120]
[358318866,1744932947756,-500.0,0.00079452,120]
[358318867,1744932947798,-290.52,0.00079452,120]
[358318868,1744932947837,-500.0,0.00079452,120]
[358318869,1744932947874,-520.7221246,0.00079452,120]
[358318870,1744932947912,-500.0,0.00079452,120]
[358318871,1744932947952,-301.2,0.00079452,120]
[358318872,1744932947991,-500.0,0.00079452,120]
[358318873,1744932948032,-500.0,0.00079452,120]
[358318874,1744932948071,-568.66185001,0.00079452,120]
[358318875,1744932948110,-500.0,0.00079452,120]
[358318876,1744932948149,-592.56,0.00079452,120]
[358318877,1744932948186,-514.9319361,0.00079452,120]
[358318878,1744932948229,-605.98,0.00079452,120]
[358318879,1744932948268,-500.0,0.00079452,120]
[358318880,1744932948308,-500.0,0.00079452,120]
[358318881,1744932948346,-500.0,0.00079452,120]
[358318882,1744932948384,-321.22,0.00079452,120]
[358318883,1744932948425,-500.0,0.00079452,120]
[358318884,1744932948464,-500.0,0.00079452,120]
[358318885,1744932948504,-500.0,0.00079452,120]
[358318886,1744932948544,-500.0,0.00079452,120]
[358318887,1744932948583,-500.0,0.00079452,120]
[358318888,1744932948622,-536.54165226,0.00079452,120]
[358318889,1744932948660,-500.0,0.00079452,120]
[358318890,1744932948701,-500.0,0.00079452,120]
[358318891,1744932948738,-500.0,0.00079452,120]
[358318892,1744932948778,-500.0,0.00079452,120]
[358318893,1744932948815,-516.56,0.00079452,120]
[358318894,1744932948855,-155.97,0.00079452,120]
[358318895,1744932948892,-500.0,0.00079452,120]
[358318896,1744932948940,-500.0,0.00079452,120]
[358318897,1744932948990,-500.0,0.00079452,120]
[358318898,1744932949028,-500.0,0.00079452,120]
[358318899,1744932949068,-500.0,0.00079452,120]
[358318900,1744932949107,-500.0,0.00079452,120]
[358318901,1744932949144,-300.0,0.00079452,120]
[358318902,1744932949189,-500.0,0.00079452,120]
[358318903,1744932949233,-500.0,0.00079452,120]
[358318904,1744932949282,-500.0,0.00079452,120]
[358318905,1744932949324,-332.46,0.00079452,120]
[358318906,1744932949363,-512.28,0.00079452,120]
[358318907,1744932949401,-531.77337865,0.00079452,120]
[358318908,1744932949440,-500.0,0.00079452,120]
[358318909,1744932949480,-565.58085776,0.00079452,120]
[358318910,1744932949520,-500.0,0.00079452,120]
[358318911,1744932949567,-500.0,0.00079452,120]
[358318912,1744932949611,-500.0,0.00079452,120]
[358318913,1744932949652,-500.0,0.00079452,120]
[358318914,1744932949695,-633.9,0.00079452,120]
[358318915,1744932949737,-500.0,0.00079452,120]
[358318916,1744932949778,-500.0,0.00079452,120]
[358318917,1744932949817,-488.96,0.00079452,120]
[358318918,1744932949856,-500.0,0.00079452,120]
[358318919,1744932949897,-222.72,0.00079452,120]
[358318920,1744932949935,-500.0,0.00079452,120]
[358318921,1744932949975,-500.0,0.00079452,120]
[358318922,1744932950016,-500.0,0.00079452,120]